Cogmind - Beta 12 X6 @@@ ROGUE MODE // 2023.02.22 @ 00:24:13 // Winter2019/RPGLIKE Player: ArabianSandBoa Result: Destroyed by P-70 Sage with High-powered Shock Rifle Performance ------------- Evolutions (5) 2500 Regions Visited (17) 3400 Robots Destroyed (779) 3895 Value Destroyed (34493) 34493 Prototype IDs (44) 880 Alien Tech Used (0) 0 Bonus (28013) 28013 TOTAL SCORE: 73181 Bonus ------- Triggered High Security 3000 High Alert Combat Kills 25109 Follower Combat Kills 1247 Entered Garrisons 200 Entered DSFs 500 Network Hubs Disabled 400 Aligned with FarCom 300 Met R17 at Cetus 500 Friendly Fire -3243 Cogmind --------- Core Integrity 0/850 Matter 186/300 Energy 565/920 System Corruption 11% Temperature Cool (84) Movement Treading (160) Location -5/Factory Parts ------- > --- POWER (4) -------- Light Antimatter Reactor Quantum Reactor Quantum Reactor Quantum Reactor > --- PROPULSION (4) --- Centrium Heavy Treads Centrium Heavy Treads > --- UTILITY (7) ------ Core Analyzer Launcher Loader Improved Focal Shield Improved Shock Absorption System Force Field Advanced System Shield > --- WEAPON (5) ------- XL Autogun Array Long-range Missile Launcher > --- INVENTORY (4) ---- Centrium Heavy Treads High-density Centrium Wheel YI-UF0's Bottomless Matter Pit (434) Peak State ------------ > --- POWER ------------ Micro Antimatter Reactor Quantum Reactor Quantum Reactor Quantum Reactor > --- PROPULSION ------- Centrium Heavy Treads High-density Centrium Wheel > --- UTILITY ---------- YI-UF0's Bottomless Matter Pit Improved Kinecellerator Launcher Loader Centrium Medium Armor Plating Centrium Medium Armor Plating Force Field > --- WEAPON ----------- XL Autogun Array Long-range Missile Launcher > --- INVENTORY -------- Centrium Heavy Treads Centrium Heavy Treads [Rating: 154] Favorites ----------- Power Heavy Ion Engine Engine Heavy Ion Engine Power Core Light Nuclear Core Reactor Quantum Reactor Propulsion Wheel Treads Centrium Heavy Treads Wheel Wheel Flight Unit Diametric Drive Utility Hacking Suite Device Launcher Loader Storage YI-UF0's Bottomless Matter Pit Processor Improved Targeting Computer Hackware Hacking Suite Protection Medium Reactive Plating Weapon XL Autogun Array Energy Gun Shock Rifle Energy Cannon Advanced Beam Cannon Ballistic Gun XL Autogun Array Launcher Long-range Missile Launcher Slashing Weapon Chainsword Build | -11 -10 -10 -9 -9 -9 -8 -8 -8 -8 -7 -7 -6 -6 -6 -6 -6 -5 ------- Run | Jun Mat Min Mat Min Exi Min Mat Gar Mat Fac DSF Fac Ext Cet Arc Hub Fac Slots Evolved 16 | 4 2 . 6 . . . . . . . . 2 1 . . 1 . Power 3 | . . . 2 . . . . . . . . 1 . . . . . Propulsion 3 | . 1 . 1 . . . . . . . . . . . . 1 . Utility 6 | 3 . . 2 . . . . . . . . 1 . . . . . Weapon 4 | 1 1 . 1 . . . . . . . . . 1 . . . . Parts Attached 127 | 6 9 2 19 8 1 . 18 2 6 2 . 28 3 12 . 5 6 Power 20 | 1 . . 4 3 . . 1 . 2 . . 4 . 4 . 1 . Engine 10 | 1 . . 2 2 . . 1 . 2 . . 2 . . . . . Core 3 | . . . 2 1 . . . . . . . . . . . . . Reactor 7 | . . . . . . . . . . . . 2 . 4 . 1 . Propulsion 18 | 1 1 . 2 1 . . 3 . 1 . . 5 2 1 . 1 . Treads 4 | . . . . . . . 1 . . . . . 1 1 . 1 . Leg . | . . . . . . . . . . . . . . . . . . Wheel 13 | 1 1 . 2 1 . . 2 . 1 . . 4 1 . . . . Hover . | . . . . . . . . . . . . . . . . . . Flight 1 | . . . . . . . . . . . . 1 . . . . . Utility 52 | 2 5 2 4 3 . . 10 . 3 . . 13 . 3 . 1 6 Device 21 | 2 . 1 2 2 . . 2 . 1 . . 7 . 1 . . 3 Storage 3 | . . . . 1 . . 1 . . . . 1 . . . . . Processor 12 | . 4 1 1 . . . 1 . . . . 2 . . . 1 2 Hackware 8 | . . . 1 . . . 4 . 2 . . . . . . . 1 Protection 8 | . 1 . . . . . 2 . . . . 3 . 2 . . . Artifact . | . . . . . . . . . . . . . . . . . . Weapon 37 | 2 3 . 9 1 1 . 4 2 . 2 . 6 1 4 . 2 . Energy Gun 13 | . 3 . 7 1 . . 1 . . . . 1 . . . . . Energy Cannon 3 | . . . 1 . . . . . . . . 1 . 1 . . . Ballistic Gun 12 | 2 . . 1 . 1 . 2 1 . 1 . 3 . 1 . . . Ballistic Cannon . | . . . . . . . . . . . . . . . . . . Launcher 8 | . . . . . . . 1 1 . 1 . 1 1 2 . 1 . Special Weapon . | . . . . . . . . . . . . . . . . . . Impact Weapon . | . . . . . . . . . . . . . . . . . . Slashing Weapon 1 | . . . . . . . . . . . . . . . . 1 . Piercing Weapon . | . . . . . . . . . . . . . . . . . . Special Melee Weapon . | . . . . . . . . . . . . . . . . . . Unidentified Prototypes 21 | . . 1 4 1 1 . 2 . . 1 . 8 . 3 . . . Corrupted Parts 9 | . . 1 1 3 . . 1 . 1 . . . . 1 . . 1 System Corruption 45 | . . 1 6 12 . . 10 . 5 . . . . 5 . . 6 Parts Lost 2 | . . . . . . 1 1 . . . . . . . . . . Power . | . . . . . . . . . . . . . . . . . . Propulsion . | . . . . . . . . . . . . . . . . . . Utility 2 | . . . . . . 1 1 . . . . . . . . . . Weapon . | . . . . . . . . . . . . . . . . . . Highest Loss Streak 1 | . . . . . . 1 1 . . . . . . . . . . To Critical Strikes . | . . . . . . . . . . . . . . . . . . Average Slot Usage (%) 81 | . 97 100 98 99 77 79 80 75 77 81 81 80 77 70 72 61 69 Engine 11 | . 11 10 12 16 18 18 18 18 18 18 18 9 10 1 . . . Reactor 5 | . . . . . . . . . . . . 9 10 16 21 20 20 Treads 1 | . . . . . . . . . . . . . . 4 5 5 10 Wheel 13 | . 13 20 16 17 18 18 17 12 14 18 18 16 15 6 5 4 . Device 9 | . . 9 11 12 12 12 4 . 1 6 6 12 21 15 14 10 18 Storage 2 | . . . . . . . 3 6 4 . . . 5 5 5 5 2 Processor 10 | . 40 30 20 18 18 18 9 6 1 . . 1 . . . 4 5 Hackware 8 | . . . 4 6 6 4 14 18 28 31 31 17 . . . . 2 Protection 2 | . 3 . . . . . 2 6 . . . 4 5 9 9 . . Energy Gun 7 | . 24 30 25 24 . . . . . . . . . . . . . Ballistic Gun 3 | . 1 . . . 2 6 6 6 6 6 6 4 5 5 5 5 5 Launcher 1 | . . . . . . . . . . . . . 1 4 5 5 5 Naked Turns . | . . . . . . . . . . . . . . . . . . Heaviest Build 141 | 11 17 17 36 43 46 46 56 56 56 46 46 108 116 141 141 122 129 Greatest Support 160 | 10 20 20 30 30 30 30 30 20 36 36 36 50 50 80 80 160 160 Greatest Overweight (x) 9 | 1 1 . 1 2 1 1 2 2 2 1 1 9 2 2 1 6 . Average Overweight (x) 1 | . . . . 1 1 1 1 2 1 . 1 1 2 1 1 3 . Largest Inventory Capacity 4 | . 1 1 1 1 1 1 2 2 3 3 3 3 3 4 4 4 4 Average Capacity 2 | . . 1 1 1 1 1 1 2 2 3 3 3 3 3 4 4 4 Most Carried 4 | . 1 1 1 1 1 1 2 2 3 3 3 3 3 4 4 4 4 Average Carried 2 | . . 1 . . 1 1 1 2 2 3 2 2 2 3 4 3 3 Final Capacity 4 | . 1 1 1 1 1 1 2 2 3 3 3 3 3 4 4 4 4 Final Carried 4 | . 1 1 1 1 1 1 2 2 3 3 3 3 3 4 4 4 4 Class Distribution -------------------- 34% | Hacker-Gunner 27% | Wizard-Gunner 8% | Gunner 8% | Generator-Gunner 5% | Mutant 4% | Wizard-Tank 4% | Scavenger-Gunner Dominant Class ---------------- Mutant | -10/Materials Gunner | -10/Mines Hacker-Gunner | -9/Materials Hacker-Gunner | -9/Mines Hacker-Mutant | -9/Exiles Hacker-Gunner | -8/Mines Wizard-Gunner | -8/Materials Wizard-Gunner | -8/Garrison Wizard-Gunner | -8/Materials Wizard-Gunner | -7/Factory Wizard-Gunner | -7/DSF Wizard-Tank | -6/Factory Hacker-Gunner | -6/Extension Hacker-Gunner | -6/Cetus Scavenger-Gunner | -6/Archives Generator-Gunner | -6/Hub_04(d) Hacker-Gunner | -5/Factory Resources | -11 -10 -10 -9 -9 -9 -8 -8 -8 -8 -7 -7 -6 -6 -6 -6 -6 -5 ----------- Run | Jun Mat Min Mat Min Exi Min Mat Gar Mat Fac DSF Fac Ext Cet Arc Hub Fac Matter Collected 18252 | 314 102 20 257 149 . 539 3032 2373 1505 23 545 3283 1542 1011 1095 1611 851 Remotely 132 | 132 . . . . . . . . . . . . . . . . . Salvage Created 28455 | 142 1206 98 2968 225 . 384 2506 1866 3711 52 348 2699 2964 2565 1507 4059 1155 Parts 1631 | 9 66 2 187 14 . 34 171 107 219 5 27 160 160 144 81 195 50 Haulers Intercepted 24 | . 2 . 6 . . . 6 . 4 . 1 4 . . . 1 . Recyclers Shooed 8 | 1 1 . 4 . . . . . . . . 2 . . . . . Parts Field Recycled . | . . . . . . . . . . . . . . . . . . Retrieved Matter . | . . . . . . . . . . . . . . . . . . Parts Self-Destructed . | . . . . . . . . . . . . . . . . . . Prevented . | . . . . . . . . . . . . . . . . . . Kills | -11 -10 -10 -9 -9 -9 -8 -8 -8 -8 -7 -7 -6 -6 -6 -6 -6 -5 ------- Run | Jun Mat Min Mat Min Exi Min Mat Gar Mat Fac DSF Fac Ext Cet Arc Hub Fac Combat Hostiles Destroyed 626 | . 26 1 50 2 . 14 46 36 65 . 8 47 72 80 42 111 26 Guns 417 | . 24 1 48 2 . 14 46 36 65 . 8 45 31 29 18 38 12 Cannons 1 | . . . . . . . . . . . . 1 . . . . . AOE 207 | . 1 . 2 . . . . . . . . 1 41 51 24 73 14 Classes Destroyed 22 | 2 7 2 3 . . . 4 1 . . . 1 1 . . 1 . Worker 18 | . 2 . 5 . . 1 3 . 1 . . 2 . . . 4 . Builder 26 | . 2 . 10 . . . 4 . 2 . . 2 3 . . 3 . Tunneler 14 | 3 . . 2 . . 2 . . 4 1 . 1 . . . 1 . Hauler 24 | . 2 . 6 . . . 6 . 4 . 1 4 . . . 1 . Recycler 16 | 1 2 . 4 . . . 2 . 5 . . . 2 . . . . Carrier 1 | . . . . . . . . . . . . . . . . 1 . Mechanic 26 | . . . 2 . . . . . 2 . . 2 2 7 1 9 1 Operator 14 | . 2 . 2 . . . 2 . 3 . . . 1 . . 2 2 Watcher 30 | . 3 . 5 . . . 5 . 5 1 . 6 2 1 . 2 . Swarmer 68 | . 9 . 8 1 . 8 4 10 8 . 2 7 2 4 . . 5 Saboteur 10 | . . . . . . . . . . . . 2 1 3 2 2 . Grunt 254 | . 17 . 30 . . 5 24 12 34 . 3 18 23 26 19 36 7 Brawler 39 | . . . 3 . . 1 1 4 2 . . 2 7 5 3 7 4 Duelist 32 | . . . . . . . 1 . 5 . . 3 6 9 1 4 3 Protector 23 | . . . . . . . 1 . 1 . . 1 3 3 2 10 2 Sentry 86 | . . . 9 1 . . 10 4 10 . . 2 17 8 12 12 1 Demolisher 1 | . . 1 . . . . . . . . . . . . . . . Specialist 13 | . . . . . . . 2 4 . . 2 3 2 . . . . Hunter 42 | . . . . . . . 2 2 4 . . 2 2 8 . 20 2 Programmer 34 | . . . . . . . . 2 . . . 6 4 6 3 11 2 Heavy 4 | . . . . . . . 1 . 1 . 1 1 . . . . . Behemoth 2 | . . . . . . . . . . . . . 2 . . . . Cetus Guard 8 | . . . . . . . . . . . . . . 8 . . . Lightning 9 | . . . . . . . . . . . . . . . . 9 . Thug 4 | . . . . 2 . . . . . . . . 2 . . . . Savage 1 | . . . . . . . . . . . . . 1 . . . . Butcher 1 | . . . . . . . . . . . . . 1 . . . . Guerrilla 2 | . . 1 . . . . . . . . . . 1 . . . . Best Kill Streak 34 | 4 13 1 10 1 . 8 15 11 19 2 4 13 22 22 19 34 21 Combat Bots Only 30 | . 10 1 7 1 . 7 8 11 17 . 4 11 18 20 18 30 20 Max Kills in Single Turn 9 | 1 2 1 3 1 . 1 2 2 3 1 2 2 6 5 4 9 5 Gunslinging 2 | . 1 . 2 . . . . . . . . . . . . . . Exploded 6 | . 1 . 1 . . . . . . . . 1 6 5 4 5 5 Melee . | . . . . . . . . . . . . . . . . . . Uniques/NPCs Destroyed 1 | . . . . 1 . . . . . . . . . . . . . YI-UF0 (-9/Mines) Combat | -11 -10 -10 -9 -9 -9 -8 -8 -8 -8 -7 -7 -6 -6 -6 -6 -6 -5 -------- Run | Jun Mat Min Mat Min Exi Min Mat Gar Mat Fac DSF Fac Ext Cet Arc Hub Fac Damage Taken 8261 | . 648 39 702 66 . 406 546 316 511 . 136 1347 672 386 405 1767 314 Core 6116 | . 504 30 549 57 . 320 421 218 407 . 105 1020 423 237 237 1348 240 Absorbed by Shields 3300 | . . . . 27 . . . . . . . 192 545 420 438 1346 332 Redirected to Core 5445 | . 403 30 501 31 . 309 371 188 326 . 105 902 375 228 216 1255 205 Core Remaining (%) 77 | 100 . 87 . . . 67 . . 98 . 100 . . . . 15 . Volleys Fired 1250 | 9 62 4 157 16 . 34 142 102 147 5 16 119 100 94 49 147 47 Largest 4 | 2 3 3 4 4 . 1 1 1 1 1 1 2 2 1 2 2 1 Hottest 200 | 40 135 135 200 200 . 60 60 60 60 60 60 148 103 120 103 103 60 Shots Fired 1758 | 18 128 12 532 64 . 34 142 102 146 5 16 120 101 94 49 147 48 Gun 1613 | 18 128 12 532 64 . 34 142 102 146 5 16 116 83 58 36 82 39 Cannon 5 | . . . . . . . . . . . . 4 . 1 . . . Launcher 140 | . . . . . . . . . . . . . 18 35 13 65 9 Special . | . . . . . . . . . . . . . . . . . . Kinetic 882 | 18 4 . 1 . . 34 142 102 146 5 16 116 83 58 36 82 39 Thermal 10 | . . . 5 . . . . . . . . 4 . 1 . . . Explosive 140 | . . . . . . . . . . . . . 18 35 13 65 9 Electromagnetic 726 | . 124 12 526 64 . . . . . . . . . . . . . Robot Hit Streak 63 | 12 60 11 17 10 . 17 35 46 31 4 19 55 46 47 56 63 27 Robot Miss Streak 4 | 1 2 1 3 2 . 4 3 4 4 2 1 3 3 2 1 1 1 Penetration Max . | . . . . . . . . . . . . . . . . . . Secondary Targets 12 | . 3 . 9 . . . . . . . . . . . . . . Max Gunslinging Chain 2 | . 1 . 2 . . . . . . . . . . . . . . Shots Hit Robots 1132 | 15 100 8 205 23 . 24 94 70 110 4 15 92 87 90 45 114 36 Core Hits 1498 | 5 63 8 115 11 . 22 90 78 125 2 14 103 190 194 93 318 67 Critical Kills . | . . . . . . . . . . . . . . . . . . Critical Parts Destroyed . | . . . . . . . . . . . . . . . . . . Critical Strikes 8 | . . . 6 1 . . . . . . . 1 . . . . . Burn 1 | . . . . . . . . . . . . 1 . . . . . Corrupt 7 | . . . 6 1 . . . . . . . . . . . . . Melee Attacks . | . . . . . . . . . . . . . . . . . . Impact . | . . . . . . . . . . . . . . . . . . Slashing . | . . . . . . . . . . . . . . . . . . Piercing . | . . . . . . . . . . . . . . . . . . Sneak Attacks . | . . . . . . . . . . . . . . . . . . Combat Hostiles . | . . . . . . . . . . . . . . . . . . Follow-up Attacks . | . . . . . . . . . . . . . . . . . . Damage Inflicted 107061 | 191 1950 130 4678 412 . 1560 6804 4596 7992 238 1120 8659 15220 16968 7989 23781 4773 Guns 59998 | 191 1639 130 3882 387 . 1560 6666 4596 7852 238 1120 8125 7460 5970 3168 4855 2159 Cannons 102 | . . . . . . . . . . . . 102 . . . . . Explosions 46949 | . 311 . 796 25 . . 138 . 140 . . 432 7748 10998 4821 18926 2614 Melee . | . . . . . . . . . . . . . . . . . . Ramming 12 | . . . . . . . . . . . . . 12 . . . . Kinetic 54000 | 191 23 . 17 . . 1560 6666 4596 7852 238 1120 8125 7460 5970 3168 4855 2159 Thermal 1489 | . 311 . 796 25 . . 138 . 72 . . 147 . . . . . Explosive 44261 | . . . . . . . . . . . . 387 7748 10998 4821 17693 2614 Electromagnetic 7299 | . 1616 130 3865 387 . . . . 68 . . . . . . 1233 . Impact . | . . . . . . . . . . . . . . . . . . Slashing . | . . . . . . . . . . . . . . . . . . Piercing . | . . . . . . . . . . . . . . . . . . Highest Corruption 21 | . . 1 6 18 18 20 13 13 18 . . 2 2 7 8 21 11 Average Corruption 9 | . . 1 6 13 18 18 12 13 17 . . 2 2 6 7 16 7 Corruption Purged . | . . . . . . . . . . . . . . . . . . Corruption Blocked . | . . . . . . . . . . . . . . . . . . Effects 300 | . . . 40 22 8 21 19 46 40 . . 5 18 15 11 40 15 Message Errors 65 | . . . 6 4 3 3 6 14 9 . . 2 5 4 . 8 1 Matter Fused 75 | . . . 9 9 3 6 3 8 7 . . 1 4 7 3 11 4 Heat Flow Errors 32 | . . . 5 2 . 5 1 2 6 . . 1 1 2 1 5 1 Energy Discharges 31 | . . . 3 2 . 4 3 7 3 . . . 3 . 1 3 2 Parts Rejected 3 | . . . 1 . . . 1 . . . . . . . . 1 . Data Loss (minor) 38 | . . . 5 3 1 3 3 6 4 . . 1 3 . 2 5 2 Data Loss (major) 15 | . . . 4 . 1 . . 2 3 . . . . . 1 1 3 Misfires 13 | . . . 1 1 . . . 3 2 . . . 1 1 1 2 1 Alerts 3 | . . . . . . . 1 . 1 . . . . . . . 1 Misdirections 4 | . . . . . . . 1 1 2 . . . . . . . . Weapon Failures 21 | . . . 6 1 . . . 3 3 . . . 1 1 2 4 . Overload Shots . | . . . . . . . . . . . . . . . . . . Overflow Damage 2023 | . . . 25 . . . 63 . 59 . . 18 209 620 91 599 339 Projectiles . | . . . . . . . . . . . . . . . . . . Explosions 2023 | . . . 25 . . . 63 . 59 . . 18 209 620 91 599 339 Melee . | . . . . . . . . . . . . . . . . . . Knockbacks . | . . . . . . . . . . . . . . . . . . Impact . | . . . . . . . . . . . . . . . . . . Kinetic . | . . . . . . . . . . . . . . . . . . Secondary . | . . . . . . . . . . . . . . . . . . Self-Inflicted Damage 916 | . 40 . 28 . . 5 . . 10 . . 94 185 82 19 376 77 Shots 26 | . 1 . 2 . . 1 . . 1 . . 2 4 2 1 7 5 Rammed 1 | . . . . . . . . . . . . . 1 . . . . Targets Rammed 1 | . . . . . . . . . . . . . 1 . . . . Kicked . | . . . . . . . . . . . . . . . . . . Crushed . | . . . . . . . . . . . . . . . . . . Highest Temperature 440 | 6 326 6 440 223 . 110 234 208 265 56 . 318 308 278 275 338 277 Average Temperature 79 | 6 96 2 113 69 . 43 33 34 61 27 . 91 67 107 80 61 98 Received Heat Transfer 1972 | . 264 . 300 6 . 27 126 126 225 . . 225 179 87 117 240 50 Effects 10 | . . . 7 . . . . . . . . . 1 1 . 1 . Shutdowns 1 | . . . . . . . . . . . . . 1 . . . . Energy Bleed 3 | . . . 1 . . . . . . . . . . 1 . 1 . Interference 6 | . . . 6 . . . . . . . . . . . . . . Siege Activations . | . . . . . . . . . . . . . . . . . . Robots Corrupted 3 | . 2 . . 1 . . . . . . . . . . . . . Combat Hostiles 1 | . 1 . . . . . . . . . . . . . . . . Parts Fried 47 | . 6 1 23 3 . . . . . . . . . . . 14 . Impact Corruptions . | . . . . . . . . . . . . . . . . . . Robots Melted . | . . . . . . . . . . . . . . . . . . Combat Hostiles . | . . . . . . . . . . . . . . . . . . Parts Melted 6 | . . . 1 . . . . . 1 . . 3 1 . . . . Heat Transferred 2250 | . 500 . 1050 50 . . 100 . 50 . . 500 . . . . . Parts Sabotaged 4 | . . . . . . . . . . . . 1 . . 3 . . Parts Stolen . | . . . . . . . . . . . . . . . . . . Parts Stripped . | . . . . . . . . . . . . . . . . . . Power Chain Reactions 19 | . 4 . 14 1 . . . . . . . . . . . . . Missiles Intercepted . | . . . . . . . . . . . . . . . . . . Alert | -11 -10 -10 -9 -9 -9 -8 -8 -8 -8 -7 -7 -6 -6 -6 -6 -6 -5 ------- Run | Jun Mat Min Mat Min Exi Min Mat Gar Mat Fac DSF Fac Ext Cet Arc Hub Fac Peak Influence 4440 | 20 707 156 1417 704 . 429 1413 2361 2919 1359 1196 1820 3606 4310 2788 4440 3365 Initial 2175 | . 13 111 60 521 . . 92 918 1150 1327 951 627 891 2019 1724 1100 2175 Average 1333 | 7 395 129 862 595 . 262 731 1673 1930 1343 1058 1101 1814 3045 2140 2419 2473 Maximum Alert Level 5 | . 3 . 4 3 . 2 4 5 5 4 4 5 5 5 5 5 5 Low Security (%) 7 | 100 16 100 7 . . 21 4 . . . . . . . . . . Level 1 7 | . 32 . 6 . . 62 16 . . . . . . . . . . Level 2 15 | . 45 . 20 96 . 15 28 . . . . 14 . . . . . Level 3 19 | . 4 . 31 3 . . 32 13 5 . 73 50 18 . . 15 . Level 4 19 | . . . 34 . . . 17 31 27 100 26 19 38 . . 18 . Level 5 12 | . . . . . . . . 54 21 . . 15 17 5 9 . 44 High Security 18 | . . . . . . . . . 45 . . . 25 94 90 65 55 Max Security . | . . . . . . . . . . . . . . . . . . Sterilizations 2 | . . . 1 . . . . . 1 . . . . . . . . Squads Dispatched 140 | . 9 . 11 . . . 11 . 17 . 2 14 12 14 8 33 9 Investigation 36 | . 7 . 8 . . . 6 . 5 . . 4 1 . . 4 1 Extermination 3 | . . . . . . . . . . . . 3 . . . . . Reinforcement 18 | . 2 . 1 . . . 3 . 3 . 2 4 1 . . 2 . Assault 74 | . . . 2 . . . 1 . 6 . . 3 10 14 8 22 8 Garrison 9 | . . . . . . . 1 . 3 . . . . . . 5 . Intercept . | . . . . . . . . . . . . . . . . . . Searches Triggered . | . . . . . . . . . . . . . . . . . . Construction Impeded 2 | . . . . . . . 1 . . . . . . . . 1 . Haulers Reinforced . | . . . . . . . . . . . . . . . . . . Active Scanning Responses . | . . . . . . . . . . . . . . . . . . Cargo Convoy Interrupts 1 | . . . . . . . . . . . . 1 . . . . . Stealth | -11 -10 -10 -9 -9 -9 -8 -8 -8 -8 -7 -7 -6 -6 -6 -6 -6 -5 --------- Run | Jun Mat Min Mat Min Exi Min Mat Gar Mat Fac DSF Fac Ext Cet Arc Hub Fac Distress Signals 13 | . 1 . 2 . . . 1 . 1 . . 1 3 2 . 2 . Communications Jammed . | . . . . . . . . . . . . . . . . . . Distress Signals . | . . . . . . . . . . . . . . . . . . Times Spotted 755 | . 35 2 60 2 . 14 47 33 76 1 8 60 101 95 62 128 31 Peak Tracking Total 21 | . 6 2 6 2 . 4 7 4 11 1 4 10 20 19 16 21 19 Tactical Retreats 11 | . 2 . 2 . . . . . . . 1 1 2 2 . 1 . Traps | -11 -10 -10 -9 -9 -9 -8 -8 -8 -8 -7 -7 -6 -6 -6 -6 -6 -5 ------- Run | Jun Mat Min Mat Min Exi Min Mat Gar Mat Fac DSF Fac Ext Cet Arc Hub Fac Traps Triggered 27 | . 2 . 3 1 . . 3 9 1 . 1 . 2 . . 2 3 Indirectly 1 | . . . . . . . . . . . . . . . . 1 . Trap Hack Attempts . | . . . . . . . . . . . . . . . . . . Triggered . | . . . . . . . . . . . . . . . . . . Disarmed . | . . . . . . . . . . . . . . . . . . Reprogrammed 6 | . . . 6 . . . . . . . . . . . . . . Reused . | . . . . . . . . . . . . . . . . . . Traps Extracted . | . . . . . . . . . . . . . . . . . . Installed . | . . . . . . . . . . . . . . . . . . Triggered . | . . . . . . . . . . . . . . . . . . Machines | -11 -10 -10 -9 -9 -9 -8 -8 -8 -8 -7 -7 -6 -6 -6 -6 -6 -5 ---------- Run | Jun Mat Min Mat Min Exi Min Mat Gar Mat Fac DSF Fac Ext Cet Arc Hub Fac Machines Disabled 243 | . 2 1 37 9 . 3 47 9 30 1 1 31 12 5 6 33 16 Max in Single Turn 7 | . 2 1 2 2 . 1 2 2 2 1 1 5 2 2 1 7 5 Garrison Access 1 | . . . . . . . . . . . . 1 . . . . . Garrison Relay 2 | . . . . . . . . 2 . . . . . . . . . Network Hub 2 | . . . . . . . . . . . . . . . . 2 . Energy Cycler 1 | . . . . . . . . . . . . . 1 . . . . Machines Repaired 1 | . . . 1 . . . . . . . . . . . . . . Machines Sabotaged . | . . . . . . . . . . . . . . . . . . Overloaded Fab Kills . | . . . . . . . . . . . . . . . . . . Hacking | -11 -10 -10 -9 -9 -9 -8 -8 -8 -8 -7 -7 -6 -6 -6 -6 -6 -5 --------- Run | Jun Mat Min Mat Min Exi Min Mat Gar Mat Fac DSF Fac Ext Cet Arc Hub Fac Machines Accessed 71 | . 6 . 12 1 . . 13 5 5 2 . 16 7 . . 3 1 Terminals 51 | . 4 . 9 . . . 9 5 3 1 . 10 7 . . 3 . Fabricators 3 | . . . . . . . . . . . . 3 . . . . . Repair Stations . | . . . . . . . . . . . . . . . . . . Recycling Units 6 | . 2 . 1 . . . 1 . 1 . . 1 . . . . . Scanalyzers 7 | . . . 2 . . . 2 . 1 . . 1 . . . . 1 Garrison Access 3 | . . . . . . . 1 . . 1 . 1 . . . . . Total Hacks 281 | . 21 . 37 1 . . 59 21 21 2 . 88 15 . . 15 1 Successful 184 | . 10 . 22 1 . . 38 12 14 2 . 67 9 . . 8 1 Failed 96 | . 11 . 15 . . . 20 9 7 . . 21 6 . . 7 . Catastrophic 14 | . 4 . 1 . . . 1 1 2 . . 3 . . . 2 . Database Lockouts 1 | . . . . . . . 1 . . . . . . . . . . Manual 102 | . 14 . 5 . 1 . 20 10 9 . . 34 . . 1 7 1 Terminals 237 | . 18 . 32 . . . 48 21 18 1 . 69 15 . . 15 . Fabricators 11 | . . . . . . . . . . . . 11 . . . . . Repair Stations . | . . . . . . . . . . . . . . . . . . Recycling Units 12 | . 3 . 3 . . . 3 . 2 . . 1 . . . . . Scanalyzers 11 | . . . 2 . . . 2 . 1 . . 5 . . . . 1 Garrison Access 9 | . . . . . . . 6 . . 1 . 2 . . . . . Terminal Hacks 140 | . 7 . 19 1 . . 28 12 11 1 . 45 9 . . 7 . Record 1 | . . . . . . . . . . . . 1 . . . . . Part Schematic 7 | . . . . . . . . 2 . . . 5 . . . . . Robot Schematic 3 | . . . . . . . . . . . . 1 2 . . . . Robot Analysis 9 | . 2 . 2 . . . 2 1 . . . 2 . . . . . Prototype ID Bank 12 | . . . 2 . . . 5 . 1 . . 1 1 . . 2 . Open Door 8 | . . . . 1 . . . 1 . . . . 6 . . . . Open DSF 1 | . . . . . . . . . . 1 . . . . . . . Level Access Points 3 | . . . . . . . 1 1 . . . 1 . . . . . Branch Access Points 4 | . . . 1 . . . . 1 . . . 2 . . . . . Emergency Access Points 9 | . . . . . . . 2 1 1 . . 4 . . . 1 . Machine Index 1 | . . . . . . . . . . . . 1 . . . . . Terminal Index 2 | . . . . . . . 1 . . . . 1 . . . . . Fabricator Index 1 | . . . . . . . . . . . . 1 . . . . . Recycling Unit Index 1 | . . . . . . . . . . . . 1 . . . . . Scanalyzer Index 1 | . . . . . . . . . . . . 1 . . . . . Alert Level 6 | . . . 2 . . . 3 . 1 . . . . . . . . Unreport Threat 23 | . 2 . 5 . . . 6 . 4 . . 4 . . . 2 . Locate Traps 1 | . . . . . . . 1 . . . . . . . . . . Reprogram Traps 2 | . . . 1 . . . . . . . . 1 . . . . . Dispatch Records 3 | . 1 . . . . . 2 . . . . . . . . . . Security Status 1 | . . . . . . . . . . . . 1 . . . . . Surveillance Status 1 | . . . . . . . . . . . . 1 . . . . . Patrol Status 1 | . . . . . . . . . . . . 1 . . . . . Transport Status 1 | . . . . . . . . . . . . 1 . . . . . Investigation Status 1 | . . . . . . . 1 . . . . . . . . . . Reinforcement Status 1 | . . . 1 . . . . . . . . . . . . . . Recall Investigation 2 | . . . . . . . . . . . . 2 . . . . . Recall Reinforcements 2 | . . . . . . . . . . . . 2 . . . . . Hauler Manifests 10 | . . . 2 . . . 2 . 2 . . 3 . . . 1 . Registered Components 3 | . . . 1 . . . . . . . . 1 . . . 1 . Registered Prototypes 3 | . . . . . . . 1 . 1 . . 1 . . . . . Zone Layout 11 | . 2 . 2 . . . 1 . 1 . . 5 . . . . . Garrison Registry 1 | . . . . . . . . 1 . . . . . . . . . Patrol Navigation 1 | . . . . . . . . 1 . . . . . . . . . Security Stations 3 | . . . . . . . . 3 . . . . . . . . . Fabricator Hacks 8 | . . . . . . . . . . . . 8 . . . . . Network Status 2 | . . . . . . . . . . . . 2 . . . . . Load Schematic 2 | . . . . . . . . . . . . 2 . . . . . Build 4 | . . . . . . . . . . . . 4 . . . . . Repair Station Hacks . | . . . . . . . . . . . . . . . . . . Recycling Unit Hacks 2 | . . . . . . . 1 . 1 . . . . . . . . Process 1 | . . . . . . . . . 1 . . . . . . . . Retrieve Components 1 | . . . . . . . 1 . . . . . . . . . . Scanalyzer 5 | . . . . . . . . . . . . 5 . . . . . Insert Component 3 | . . . . . . . . . . . . 3 . . . . . Analyze 2 | . . . . . . . . . . . . 2 . . . . . Garrison Access Hacks 3 | . . . . . . . 1 . . 1 . 1 . . . . . Unlock Access 2 | . . . . . . . 1 . . 1 . . . . . . . Seal Access 1 | . . . . . . . . . . . . 1 . . . . . Unauthorized Hacks 26 | . 3 . 3 . . . 8 . 2 . . 8 . . . 1 1 Terminals 8 | . 1 . 1 . . . 1 . . . . 4 . . . 1 . Track 1 | . . . . . . . . . . . . 1 . . . . . Botnet 2 | . . . . . . . . . . . . 2 . . . . . Detonate 1 | . . . . . . . . . . . . . . . . 1 . Operators 1 | . . . . . . . . . . . . 1 . . . . . Sabotage 3 | . 1 . 1 . . . 1 . . . . . . . . . . Fabricators 3 | . . . . . . . . . . . . 3 . . . . . Report 1 | . . . . . . . . . . . . 1 . . . . . Fabnet 2 | . . . . . . . . . . . . 2 . . . . . Repair Stations . | . . . . . . . . . . . . . . . . . . Recycling Units 5 | . 2 . . . . . 1 . 1 . . 1 . . . . . Tunnel 5 | . 2 . . . . . 1 . 1 . . 1 . . . . . Scanalyzers 6 | . . . 2 . . . 2 . 1 . . . . . . . 1 Extract 6 | . . . 2 . . . 2 . 1 . . . . . . . 1 Garrison Access 4 | . . . . . . . 4 . . . . . . . . . . Restock 1 | . . . . . . . 1 . . . . . . . . . . Reprogram 1 | . . . . . . . 1 . . . . . . . . . . Intercept 1 | . . . . . . . 1 . . . . . . . . . . Watchers 1 | . . . . . . . 1 . . . . . . . . . . Data Cores Recovered 3 | . . . . . . . 2 . 1 . . . . . . . . Used . | . . . . . . . . . . . . . . . . . . Hacking Detections 42 | . 4 . 7 . . . 6 4 3 . . 14 1 . . 3 . Full Trace Events 19 | . 2 . 4 . . . 2 2 2 . . 3 1 . . 3 . Feedback Events . | . . . . . . . . . . . . . . . . . . Feedback Blocked . | . . . . . . . . . . . . . . . . . . Robot Schematics Acquired 3 | . . . . . . . . . . . . 1 2 . . . . Robots Built . | . . . . . . . . . . . . . . . . . . Authchips . | . . . . . . . . . . . . . . . . . . Time . | . . . . . . . . . . . . . . . . . . Total Robot Build Rating . | . . . . . . . . . . . . . . . . . . Part Schematics Acquired 27 | . . . 5 . . . 4 2 8 . . 7 . . . . 1 Parts Built 4 | . . . . . . . . . . . . 4 . . . . . Authchips . | . . . . . . . . . . . . . . . . . . Time 270 | . . . . . . . . . . . . 270 . . . . . Total Part Build Rating 28 | . . . . . . . . . . . . 28 . . . . . Parts Repaired . | . . . . . . . . . . . . . . . . . . Time . | . . . . . . . . . . . . . . . . . . Parts Recycled . | . . . . . . . . . . . . . . . . . . Recycled Matter 169 | . . . . . . . . . 169 . . . . . . . . Retrieved Matter . | . . . . . . . . . . . . . . . . . . Retrieved Components 7 | . . . . . . . 7 . . . . . . . . . . Parts Scanalyzed 2 | . . . . . . . . . . . . 2 . . . . . Part Schematics Acquired 2 | . . . . . . . . . . . . 2 . . . . . Parts Damaged . | . . . . . . . . . . . . . . . . . . Bothacking | -11 -10 -10 -9 -9 -9 -8 -8 -8 -8 -7 -7 -6 -6 -6 -6 -6 -5 ------------ Run | Jun Mat Min Mat Min Exi Min Mat Gar Mat Fac DSF Fac Ext Cet Arc Hub Fac Used RIF Installer . | . . . . . . . . . . . . . . . . . . Robots Hacked 1 | . . . . . . . . . . . . . . . . . 1 Non-combat . | . . . . . . . . . . . . . . . . . . Combat 1 | . . . . . . . . . . . . . . . . . 1 Robot Hacks Applied . | . . . . . . . . . . . . . . . . . . Relay Couplers Released 5 | . . . . . . . . 3 . . . . . . . 2 . Machine Destruction 2 | . . . . . . . . 2 . . . . . . . . . Programmers 3 | . . . . . . . . 1 . . . . . . . 2 . Fabnet Peak Effective % 3 | . . . . . . . . . . . . . . . . . 3 Autooverrided 1 | . . . . . . . . . . . . . . . . . 1 Robots Rewired 22 | . . . . . . . . 3 . . . . 19 . . . . Allies Hacked 1 | . . . . . . . . . . . . . 1 . . . . Hacks Repelled . | . . . . . . . . . . . . . . . . . . Allies | -11 -10 -10 -9 -9 -9 -8 -8 -8 -8 -7 -7 -6 -6 -6 -6 -6 -5 -------- Run | Jun Mat Min Mat Min Exi Min Mat Gar Mat Fac DSF Fac Ext Cet Arc Hub Fac Total Allies 34 | . . . . 1 . . 1 4 . . . . 27 . . . 1 Largest Group 14 | . . . . 1 . . 1 3 . . . . 14 1 1 . 1 Highest-Rated Group 544 | . . . . 31 . . 37 72 . . . . 544 129 129 . 30 Highest-Rated Ally 159 | . . . . 31 . . 37 39 . . . . 159 129 129 . 30 Total Orders 2 | . . . . . . . . . . . . . 2 . . . . ROAM 2 | . . . . . . . . . . . . . 2 . . . . Ally Attacks 185 | . . . . . . . . 11 . . . . 137 33 . . 4 Total Damage 5079 | . . . . . . . . 327 . . . . 3461 1195 . . 96 Kills 34 | . . . . . . . . 4 . . . . 25 4 . . 1 Allies Corrupted . | . . . . . . . . . . . . . . . . . . Allies Melted . | . . . . . . . . . . . . . . . . . . Intel | -11 -10 -10 -9 -9 -9 -8 -8 -8 -8 -7 -7 -6 -6 -6 -6 -6 -5 ------- Run | Jun Mat Min Mat Min Exi Min Mat Gar Mat Fac DSF Fac Ext Cet Arc Hub Fac Robot Analysis Total 9 | . 2 . 2 . . . 2 1 . . . 2 . . . . . Derelict Logs Recovered 3 | . . 1 . 2 . . . . . . . . . . . . . Drone Launches . | . . . . . . . . . . . . . . . . . . Drone Recoveries . | . . . . . . . . . . . . . . . . . . Exploration | -11 -10 -10 -9 -9 -9 -8 -8 -8 -8 -7 -7 -6 -6 -6 -6 -6 -5 ------------- Run | Jun Mat Min Mat Min Exi Min Mat Gar Mat Fac DSF Fac Ext Cet Arc Hub Fac Turns Passed 12023 | 71 802 378 1487 608 201 462 1128 1050 777 204 137 1459 1071 522 252 893 521 Spaces Moved 7777 | 34 576 436 813 535 208 417 819 749 532 182 99 937 646 168 79 287 260 Core 1 | 1 . . . . . . . . . . . . . . . . . Treads 628 | . . . . . . . 2 . . . . . . 136 79 151 260 Legs . | . . . . . . . . . . . . . . . . . . Wheels 7148 | 33 576 436 813 535 208 417 817 749 532 182 99 937 646 32 . 136 . Hover . | . . . . . . . . . . . . . . . . . . Flight . | . . . . . . . . . . . . . . . . . . Fastest Speed 50 | 50 80 80 80 95 95 95 95 110 101 86 101 86 122 122 240 160 160 Average Speed 110 | 86 90 80 94 95 95 95 95 110 106 100 101 106 122 217 240 221 160 Slowest Speed 330 | 95 95 80 95 110 95 95 330 110 110 101 101 215 130 240 240 240 160 Overloaded Moves . | . . . . . . . . . . . . . . . . . . Propulsion Burnouts . | . . . . . . . . . . . . . . . . . . Robots Hopped . | . . . . . . . . . . . . . . . . . . Cave-ins Triggered 2 | . . . . . . 1 . . . . . 1 . . . . . Exploration Rate (%) 64 | 4 77 91 76 92 61 93 86 85 67 8 81 33 87 67 87 44 13 Regions Visited 17 Branch Regions 8 Pre-discovered Areas 5 | . 2 . . . . . 1 . 1 . . 1 . . . . . Known Exits Taken 6 | . . . 1 . . . 1 . 1 1 . 1 . . . 1 . Unknown Exits Taken 9 | 1 1 1 . 1 1 1 . . . . . . 1 1 1 . . Scrap Searched 3 | . . 1 . 1 . 1 . . . . . . . . . . . Spaces Dug 196 | . . . . . . 7 64 . 39 . . 40 12 . . 23 11 Terrain Destroyed 3020 | . 34 . 103 8 . 83 409 53 344 4 . 415 252 302 91 767 155 Melee . | . . . . . . . . . . . . . . . . . . Projectile 724 | . . . . . . 69 158 . 154 4 . 120 68 26 25 65 35 AOE 2296 | . 34 . 103 8 . 14 251 53 190 . . 295 184 276 66 702 120 Terrain Rammed . | . . . . . . . . . . . . . . . . . . Walls Destroyed . | . . . . . . . . . . . . . . . . . . Machines Disabled . | . . . . . . . . . . . . . . . . . . Actions | -11 -10 -10 -9 -9 -9 -8 -8 -8 -8 -7 -7 -6 -6 -6 -6 -6 -5 --------- Run | Jun Mat Min Mat Min Exi Min Mat Gar Mat Fac DSF Fac Ext Cet Arc Hub Fac Total 10579 | 54 729 455 1159 593 212 482 1160 975 746 202 137 1391 925 322 140 534 363 Wait 809 | 6 54 12 113 25 . 19 117 44 18 12 1 236 42 9 1 60 40 Move 7758 | 33 575 435 812 534 207 415 818 747 531 181 98 936 645 167 78 286 260 Hop . | . . . . . . . . . . . . . . . . . . Pick Up 34 | . 1 . 3 2 . . 4 . 5 . 3 8 1 5 . 2 . Fast Attach 102 | 6 9 2 17 6 1 . 15 2 6 2 . 19 2 5 . 4 6 Attach 10 | . . . 2 . . . 1 . . . . 4 1 1 . 1 . Detach 20 | . 1 1 1 . . . 3 . 2 . . 8 . 1 . . 3 Swap 15 | . . . . 2 . . 2 . . . . 5 . 6 . . . Drop 88 | . 4 1 10 5 4 . 11 2 8 2 3 19 2 12 . 3 2 Fire 1250 | 9 62 4 157 16 . 34 142 102 147 5 16 119 100 94 49 147 47 Melee . | . . . . . . . . . . . . . . . . . . Ram 1 | . . . . . . . . . . . . . 1 . . . . Kick . | . . . . . . . . . . . . . . . . . . Crush . | . . . . . . . . . . . . . . . . . . Escape Stasis 73 | . . . . . . 1 . 48 . . 8 . 16 . . . . Rewire 79 | . . . . . . . . 7 . . . . 72 . . . . Trap . | . . . . . . . . . . . . . . . . . . Miscellaneous 340 | . 23 . 44 3 . 13 47 23 29 . 8 37 43 22 12 31 5 Route ------- -11/Junkyard -10/Materials (discovered 3 exits: *Mat / [*Min x2]) -10/Mines (discovered 2 exits: *Mat x2) -9/Materials (discovered 4 exits: *Mat x3 / *Min) -9/Mines (discovered 3 exits: *Mat x2 / *Exi) -9/Exiles -8/Mines (discovered 2 exits: *Mat x2) -8/Materials (discovered 4 exits: *Fac x3 / Gar) -8/Garrison (discovered 4 exits: *Mat x4) -8/Materials (discovered 3 exits: *Fac x3) -7/Factory (discovered 2 exits: Gar / DSF) -7/DSF -6/Factory (discovered 8 exits: Fac x4 / Low x2 / *Ext x2) -6/Extension (discovered 3 exits: *Fac x2 / [*Cet]) -6/Cetus (discovered 2 exits: *Fac / *Arc) -6/Archives (discovered 2 exits: *Hub x2) -6/Hub_04(d) -5/Factory History --------- Turn | Location | Event 4 | -11/Junkyard | Upgraded with Utility slot (x3) 4 | -11/Junkyard | Upgraded with Weapon slot (x1) 25 | -11/Junkyard | Discovered new exit (range 14) 72 | -11/Junkyard | Entered Materials 310 | -10/Materials | Build established: Mutant 311 | -10/Materials | Discovered new exit (range 14) 383 | -10/Materials | Reached level 2 420 | -10/Materials | Discovered new exit (range 18) 602 | -10/Materials | Reached level 3 657 | -10/Materials | Destroyed 10 combat bots 688 | -10/Materials | Upgraded with Propulsion slot (x1) 688 | -10/Materials | Upgraded with Weapon slot (x1) 751 | -10/Materials | Discovered new exit (range 11) 874 | -10/Materials | Entered Mines 899 | -10/Mines | Found a damaged Exp. Sensor Array with a note attached 901 | -10/Mines | Found Prototype Device 901 | -10/Mines | Identified Exp. Sensor Array 944 | -10/Mines | Discovered new exit (range 5) 979 | -10/Mines | Build established: Gunner 1009 | -10/Mines | Assembled infested the area 1014 | -10/Mines | Assisted by a Guerilla fighting off Assembled 1038 | -10/Mines | Discovered new exit (range 5) 1139 | -10/Mines | Reached level 4 1252 | -10/Mines | Entered Materials 1254 | -9/Materials | Reached level 5 1257 | -9/Materials | Upgraded with Power slot (x1) 1257 | -9/Materials | Upgraded with Utility slot (x1) 1257 | -9/Materials | Upgraded with Weapon slot (x1) 1463 | -9/Materials | Reached level 6 1530 | -9/Materials | Upgraded with Power slot (x1) 1564 | -9/Materials | Discovered new exit (range 8) 1670 | -9/Materials | Discovered new exit (range 11) 1673 | -9/Materials | Reached level 7 1687 | -9/Materials | Upgraded with Utility slot (x1) 1817 | -9/Materials | Reached level 8 1941 | -9/Materials | Upgraded with Propulsion slot (x1) 2052 | -9/Materials | First assault squad dispatched 2149 | -9/Materials | Reached level 9 2186 | -9/Materials | Destroyed 7 combat bots 2397 | -9/Materials | Discovered new exit (range 16) 2503 | -9/Materials | Build established: Hacker-Gunner 2644 | -9/Materials | Reached level 10 2644 | -9/Materials | Identified exit to Mines 2661 | -9/Materials | Discovered new exit (range 17) 2686 | -9/Materials | Sterilization system engaged 2686 | -9/Materials | Non-combat units ordered to evacuate 2739 | -9/Materials | Entered Mines 2798 | -9/Mines | Found a hidden stash of uninstalled traps 2811 | -9/Mines | Joined a pair of Derelicts in attacking an 0b10 outpost 2888 | -9/Mines | Destroyed YI-UF0 2898 | -9/Mines | System corruption reached 10% 2899 | -9/Mines | Found Corrupted Prototype Storage 2901 | -9/Mines | Identified YI-UF0's Bottomless Matter Pit 3012 | -9/Mines | Escorted by a lone wolf Derelict 3078 | -9/Mines | Discovered new exit (range 9) 3093 | -9/Mines | Met a Derelict who couldn't figure out how to use a Trap Extractor 3196 | -9/Mines | Learned 8 Materials zone layouts 3196 | -9/Mines | Discovered new exit (range 11) 3214 | -9/Mines | Learned Materials machine intel 3344 | -9/Mines | Deemed a non-threat by the Exiles lab entrance 3344 | -9/Mines | Discovered new exit (range 5) 3347 | -9/Mines | Entered Exiles 3373 | -9/Exiles | Met 8R-AWN 3387 | -9/Exiles | Met EX-HEX 3417 | -9/Exiles | Met EX-BIN 3428 | -9/Exiles | Aligned with FarCom system 3429 | -9/Exiles | Given EX-Vault access code 3452 | -9/Exiles | Opened EX-Vault 3457 | -9/Exiles | Found Prototype Ballistic Gun 3457 | -9/Exiles | Identified XL Autogun Array 3479 | -9/Exiles | Warned to stay clear of 0b10 Research branches 3505 | -9/Exiles | Met EX-DEC 3539 | -9/Exiles | Discovered new exit (range 10) 3548 | -9/Exiles | Left Exiles lab with XL Autogun Array 3548 | -9/Exiles | Entered Mines 3566 | -8/Mines | Reached level 11 3642 | -8/Mines | Discovered new exit (range 8) 3672 | -8/Mines | Destroyed 7 combat bots 3842 | -8/Mines | Discovered new exit (range 15) 3867 | -8/Mines | Crushed by falling debris 4010 | -8/Mines | Entered Materials 4011 | -8/Materials | Identified exit to Factory 4012 | -8/Materials | Loaded intel: 65 machine locations 4012 | -8/Materials | Reached level 12 4201 | -8/Materials | Reached level 13 4657 | -8/Materials | Reached level 14 4661 | -8/Materials | System corruption reached 10% 4678 | -8/Materials | Destroyed 8 combat bots 4796 | -8/Materials | Build established: Wizard-Gunner 4810 | -8/Materials | First assault squad dispatched 4833 | -8/Materials | Central database locked down 5100 | -8/Materials | Garrison activated, responded to threat 5130 | -8/Materials | Identified exit to Garrison 5138 | -8/Materials | Entered Garrison 5138 | -8/Garrison | Accompanied by 1 ally 5218 | -8/Garrison | Triggered checkpoint 5278 | -8/Garrison | Garrison Relay disabled 5308 | -8/Garrison | Learned Materials security intel 5308 | -8/Garrison | Learned Materials security intel 5308 | -8/Garrison | Learned Materials security intel 5535 | -8/Garrison | Triggered checkpoint 5537 | -8/Garrison | Reached level 15 5554 | -8/Garrison | Triggered checkpoint 5612 | -8/Garrison | Triggered checkpoint 5638 | -8/Garrison | Destroyed 11 combat bots 5654 | -8/Garrison | Discovered new exit (range 8) 5668 | -8/Garrison | Triggered checkpoint 5709 | -8/Garrison | Discovered new exit (range 3) 5808 | -8/Garrison | Triggered checkpoint 5856 | -8/Garrison | Triggered checkpoint 5895 | -8/Garrison | Discovered new exit (range 45) 5895 | -8/Garrison | Discovered new exit (range 47) 5895 | -8/Garrison | Discovered new exit (range 13) 5895 | -8/Garrison | Discovered new exit (range 57) 5904 | -8/Garrison | Garrison Relay disabled 5968 | -8/Garrison | Triggered checkpoint 6016 | -8/Garrison | Triggered checkpoint 6024 | -8/Garrison | Rescued a captive Derelict 6050 | -8/Garrison | Identified exit to Materials 6171 | -8/Garrison | Attempted to access garrison exit controls, blocked by remote lockdown 6188 | -8/Garrison | Entered Materials 6282 | -8/Materials | Destroyed 7 combat bots 6359 | -8/Materials | Discovered exit to Factory (range 13) 6441 | -8/Materials | Discovered exit to Factory (range 17) 6588 | -8/Materials | First assault squad dispatched 6605 | -8/Materials | Garrison activated, responded to threat 6607 | -8/Materials | Reached level 16 6608 | -8/Materials | High security lockdown imminent 6641 | -8/Materials | Discovered exit to Factory (range 15) 6676 | -8/Materials | Destroyed 15 combat bots 6688 | -8/Materials | High security lockdown engaged 6723 | -8/Materials | Destroyed 8 combat bots 6789 | -8/Materials | Sterilization system engaged 6789 | -8/Materials | Non-combat units ordered to evacuate 6810 | -8/Materials | Destroyed 17 combat bots 6889 | -8/Materials | Combat units ordered to evacuate 6965 | -8/Materials | Entered Factory 7121 | -7/Factory | Identified exit to Garrison 7169 | -7/Factory | Identified exit to DSF 7169 | -7/Factory | Entered DSF 7171 | -7/DSF | Reached level 17 7188 | -7/DSF | Additional patrols routed to DSF 7215 | -7/DSF | Discovered new exit (range 17) 7306 | -7/DSF | Entered Factory 7340 | -6/Factory | Identified exit to Lower Caves 7340 | -6/Factory | Identified exit to Extension 7344 | -6/Factory | Reached level 18 7350 | -6/Factory | Upgraded with Utility slot (x1) 7463 | -6/Factory | Fabricated Mic. Antimatter Reactor (x2) 7541 | -6/Factory | Identified exit to Factory 7666 | -6/Factory | Build established: Wizard-Tank 7915 | -6/Factory | Fabricated Imp. Kinecellerator (x1) 7926 | -6/Factory | Reached level 19 7939 | -6/Factory | Upgraded with Power slot (x1) 7961 | -6/Factory | Destroyed 10 combat bots 8006 | -6/Factory | First assault squad dispatched 8169 | -6/Factory | Destroyed 8 combat bots 8204 | -6/Factory | Fabricated Adv. Salvage Targeting Computer (x1) 8226 | -6/Factory | Build established: Wizard-Gunner 8291 | -6/Factory | Found Launcher Loader 8329 | -6/Factory | Cargo convoy interrupted 8359 | -6/Factory | Crushed by falling debris 8359 | -6/Factory | Core integrity fell below 50% 8378 | -6/Factory | Destroyed 11 combat bots 8414 | -6/Factory | Found Prototype Energy Cannon 8414 | -6/Factory | Identified Exp. Thermic Cannon 8430 | -6/Factory | Core integrity fell below 20% 8441 | -6/Factory | Reached level 20 8552 | -6/Factory | Found Prototype Launcher 8552 | -6/Factory | Identified Scatter Rocket Array 8597 | -6/Factory | Build established: Hacker-Gunner 8765 | -6/Factory | Entered Extension 8776 | -6/Extension | Disrupted transfer network 8855 | -6/Extension | Rescued a captive Derelict 8856 | -6/Extension | Rescued a captive Derelict 8944 | -6/Extension | Rescued a captive Derelict 8956 | -6/Extension | Rescued a captive Derelict 8957 | -6/Extension | Rescued a captive Derelict 8968 | -6/Extension | Rescued a captive Derelict 8969 | -6/Extension | Rescued a captive Derelict 9062 | -6/Extension | Spotted B-75 Beast 9094 | -6/Extension | Destroyed B-75 Beast 9118 | -6/Extension | Spotted B-75 Beast 9124 | -6/Extension | Destroyed B-75 Beast 9145 | -6/Extension | Discovered exit to Factory (range 4) 9155 | -6/Extension | Reached level 21 9207 | -6/Extension | Energy Cycler disabled 9256 | -6/Extension | Rescued A7 9465 | -6/Extension | First assault squad dispatched 9564 | -6/Extension | High security lockdown imminent 9574 | -6/Extension | Upgraded with Weapon slot (x1) 9579 | -6/Extension | P-60 Hacker assimilated allied 9U-68K(g) 9612 | -6/Extension | Destroyed 10 combat bots 9642 | -6/Extension | Destroyed 18 combat bots 9644 | -6/Extension | High security lockdown engaged 9693 | -6/Extension | Discovered exit to Factory (range 18) 9699 | -6/Extension | Discovered new exit (range 17) 9701 | -6/Extension | Reached level 22 9736 | -6/Extension | Destroyed 7 combat bots 9791 | -6/Extension | Destroyed 17 combat bots 9836 | -6/Extension | Entered Cetus 9836 | -6/Cetus | Accompanied by 1 ally (A7) 9841 | -6/Cetus | Acquired a Cetus Manufacturing Module code from A7 9856 | -6/Cetus | Spotted Cetus Guard 9856 | -6/Cetus | Spotted Cetus Guard 9858 | -6/Cetus | Destroyed Cetus Guard 9859 | -6/Cetus | Spotted Cetus Guard 9863 | -6/Cetus | High security lockdown imminent 9863 | -6/Cetus | Destroyed Cetus Guard 9868 | -6/Cetus | Spotted Cetus Guard 9869 | -6/Cetus | Destroyed Cetus Guard 9871 | -6/Cetus | Destroyed Cetus Guard 9943 | -6/Cetus | High security lockdown engaged 10029 | -6/Cetus | Destroyed 14 combat bots 10061 | -6/Cetus | Discovered new exit (range 17) 10081 | -6/Cetus | Destroyed 8 combat bots 10114 | -6/Cetus | Spotted Cetus Guard 10114 | -6/Cetus | Spotted Cetus Guard 10115 | -6/Cetus | Spotted Cetus Guard 10115 | -6/Cetus | Spotted Cetus Guard 10118 | -6/Cetus | Destroyed Cetus Guard 10127 | -6/Cetus | Destroyed Cetus Guard 10135 | -6/Cetus | Destroyed Cetus Guard 10137 | -6/Cetus | Destroyed Cetus Guard 10149 | -6/Cetus | Discovered exit to Factory (range 17) 10159 | -6/Cetus | Destroyed 20 combat bots 10166 | -6/Cetus | Met Revision 17 10274 | -6/Cetus | Destroyed 18 combat bots 10300 | -6/Cetus | Reached level 23 10333 | -6/Cetus | Destroyed 13 combat bots 10358 | -6/Cetus | Entered Archives 10358 | -6/Archives | Accompanied by 1 ally (A7) 10381 | -6/Archives | High security lockdown imminent 10412 | -6/Archives | Unable to access archive contents 10441 | -6/Archives | Discovered new exit (range 16) 10461 | -6/Archives | High security lockdown engaged 10528 | -6/Archives | Destroyed 18 combat bots 10555 | -6/Archives | Discovered new exit (range 16) 10610 | -6/Archives | Entered Hub_04(d) 10629 | -6/Hub_04(d) | Destroyed 11 combat bots 10892 | -6/Hub_04(d) | Network Hub disabled 10892 | -6/Hub_04(d) | Garrison activated, responded to threat 10899 | -6/Hub_04(d) | System corruption reached 10% 10899 | -6/Hub_04(d) | Spotted Lightning 10904 | -6/Hub_04(d) | Destroyed Lightning 10905 | -6/Hub_04(d) | Destroyed Lightning 10906 | -6/Hub_04(d) | Spotted Lightning 10906 | -6/Hub_04(d) | Spotted Lightning 10909 | -6/Hub_04(d) | Spotted Lightning 10911 | -6/Hub_04(d) | Destroyed Lightning 10911 | -6/Hub_04(d) | Destroyed Lightning 10911 | -6/Hub_04(d) | Spotted Lightning 10914 | -6/Hub_04(d) | Destroyed Lightning 10914 | -6/Hub_04(d) | High security lockdown imminent 10914 | -6/Hub_04(d) | Destroyed Lightning 10915 | -6/Hub_04(d) | Destroyed Lightning 10917 | -6/Hub_04(d) | Destroyed Lightning 10920 | -6/Hub_04(d) | Spotted Lightning 10924 | -6/Hub_04(d) | Destroyed Lightning 10945 | -6/Hub_04(d) | Destroyed 22 combat bots 10994 | -6/Hub_04(d) | High security lockdown engaged 11064 | -6/Hub_04(d) | Garrison activated, responded to threat 11094 | -6/Hub_04(d) | Disrupted transfer network 11159 | -6/Hub_04(d) | Destroyed 30 combat bots 11217 | -6/Hub_04(d) | Destroyed 9 combat bots 11220 | -6/Hub_04(d) | Build established: Generator-Gunner 11246 | -6/Hub_04(d) | Network Hub disabled 11286 | -6/Hub_04(d) | Discovered exit to Factory (range 3) 11326 | -6/Hub_04(d) | Destroyed 16 combat bots 11340 | -6/Hub_04(d) | Reached level 24 11342 | -6/Hub_04(d) | Upgraded with Propulsion slot (x1) 11362 | -6/Hub_04(d) | Destroyed 14 combat bots 11481 | -6/Hub_04(d) | Garrison activated, responded to threat 11503 | -6/Hub_04(d) | Entered Factory 11504 | -5/Factory | Core integrity fell below 50% 11504 | -5/Factory | Core integrity fell below 20% 11506 | -5/Factory | Destroyed 15 combat bots 11737 | -5/Factory | High security lockdown imminent 11814 | -5/Factory | System corruption reached 10% 11817 | -5/Factory | High security lockdown engaged 12024 | -5/Factory | Destroyed by P-70 Sage with High-powered Shock Rifle Last Messages --------------- 12006_ P-70 Sage destroyed. 12007_ The unstable cave ceiling collapses. 12007_ G-67 Veteran destroyed. 12012_ The unstable cave ceiling collapses. 12012_ Adv. Heat Sink crushed. 12013_ The unstable cave ceiling collapses. 12013_ Acquired 78 matter. 12015_ Acquired 59 matter. 12019_ B-60 Warrior destroyed. 12020_ The unstable cave ceiling collapses. 12020_ B-60 Warrior destroyed. 12021_ Acquired 124 matter. 12022_ C-30 ARC bursts open, deploying its payload. 12022_ P-70 Sage unfolds itself. 12022_ H-66 Slayer unfolds itself. 12022_ M-28 Smith unfolds itself. 12022_ Penetrated by Slug. 12023_ H-66 Slayer destroyed. 12023_ Manufacturing Mainframe disabled. 12023_ Penetrated by Slug. Map ----- +----------------------------------------------------+ | ?????????????????????????????????????????????????? | | ?????????????????????????????????????????????????? | | ?????????????????????????????????????????????????? | | ?????????????????????????????????????????????????? | | ?????????????????????????????????????????????????? | | ?????????????????????????????????????????????????? | | ?????????????????????????????????????????????????? | | ?????????????????????????????????????????????????? | | ?????????????????????????????????????????????????? | | ?????????????????????????????????????????????????? | | ?????????????????????????????????????????????????? | | ?????????????????????????????????????????????????? | | ????????????????????????????Y????????????????????? | | ???????????????????????????YY????????????????????? | | ????????????????????????????Y????????????????????? | | ???????????????##????????????????????????????????? | | ??????????????##;###########??????????########?### | | ????????????? ! #??????????# | | ????????????? ! i !#??????????# """ """ | | ??????????# ! =#??????????# """ """ ! | | ??????? ??? =%;??????????# """ """ | | ?????? ??# """ " " """"%#??????????# "" "" | | ######+# #m " """*#??????????# "" "" | | + # !#??????????# | | # # = %/ #????????? ! | | # # %%%p[ % =%!%@!###### | | + # h !% % *#% ;;"" # [ | | ## %% [ |%! | | ## # %= #%%% = [%! | | ## ## #% =%= ####+#+#### | | ## ### % ##??# | | ## #?# # % ##???# ## | | ######### #?## #????# #? | | # #?## #????# #? | | ! # ### #????# #? | | # ;;;;##????# #? | | """ """ # " ! ;; ;;###?????# #? | | """ """ + T !%! ; ???????# #? | | """ """ # =[ #[ ??????# #? | | + # ! ; ?????# #? | | ######## % ; ????# +? | | !#??????### ### + ??????# #? | | "" """ #????????# ^ ############### #? | | ""S""" #????????# ^### #? | | #????????# #?? ## | | +########???????## ##?? | | ???##T ########## #??? """ | | ?? = ##!!! """ "" | | ?? ! ! ##!!= """ F" | | ?? = ##!!= """ """""" " | +----------------------------------------------------+ Best States ------------- Heat Dissipation 79 Energy Generation 81 Energy Capacity 920 Matter Stores 1800 Matter Capacity 1800 Sight Range 18 Robot Scan Range 20 Terrain Scan Density 10 Base Temperature (-) 100 Armor Coverage 450 Resistance: KI 30 Resistance: TH 25 Resistance: EX 50 Evasion (%) 44 Targeting Accuracy 24 Core Analysis 6 Armor Integrity Analysis 30 Recoil Reduction 4 Matter Filtering 50 Kinecelleration 40 Salvage Targeting 3 Offensive Hacking 55 Defensive Hacking 30 Item Schematics ----------------- Hcp. Matter Pod | -9/Materials | Extracted ECM Suite | -9/Materials | Extracted Hvy. EM Pulse Gun | -9/Materials | Extracted Particle Gun | -9/Materials | Extracted Shotgun | -9/Materials | Extracted Trap Scanner | -8/Materials | Extracted Flak Cannon | -8/Materials | Extracted Imp. Targeting Computer | -8/Materials | Extracted Beam Rifle | -8/Materials | Extracted Imp. Salvage Targeting Computer | -8/Garrison | Hacked Enh. Autogun | -8/Garrison | Hacked Hvy. Flail | -8/Materials | Extracted Airjet | -8/Materials | Extracted Imp. Terrain Scanner | -8/Materials | Extracted Lgt. EM Pulse Cannon | -8/Materials | Extracted Hvy. Particle Gun | -8/Materials | Extracted Aerolev Unit | -8/Materials | Extracted Imp. Light Armor Plating | -8/Materials | Extracted Particle Charger | -8/Materials | Extracted Imp. Kinecellerator | -6/Factory | Hacked Exp. Targeting Computer | -6/Factory | Hacked Imp. Plasma Cutter | -6/Factory | Hacked Imp. Heavy Armor Plating | -6/Factory | Hacked Adv. Salvage Targeting Computer | -6/Factory | Hacked Scatter Rocket Array | -6/Factory | Scanalyzed Lrn. Missile Launcher | -6/Factory | Scanalyzed Imp. Shock Absorption System | -5/Factory | Extracted Robot Schematics ------------------ M-22 Extractor | -6/Factory | Hacked X-62 Marksman | -6/Extension | Hacked H-55 Commando | -6/Extension | Hacked Fabricated ------------ Mic. Antimatter Reactor | x2 | -6/Factory | Preloaded Imp. Kinecellerator | x1 | -6/Factory Adv. Salvage Targeting Computer | x1 | -6/Factory Alien Tech Used ----------------- None Achievements -------------- None Challenges ------------ None RPGLIKE | -11 -10 -10 -9 -9 -9 -8 -8 -8 -8 -7 -7 -6 -6 -6 -6 -6 -5 --------- Run | Jun Mat Min Mat Min Exi Min Mat Gar Mat Fac DSF Fac Ext Cet Arc Hub Fac Levels Raised 23 | . 2 1 6 . . 1 3 1 1 . 1 3 2 1 . 1 . XP Earned 38605 | 3000 3813 725 9205 462 117 1839 4249 1299 1441 549 671 4491 2947 1247 410 1114 1026 XP Spent 37095 | 3000 2770 . 9150 . 1500 1400 4350 1450 1850 . 1000 4425 2200 1400 1500 1100 . Upgrades 65 | 5 9 . 17 . 2 3 6 3 2 . 1 8 3 3 2 1 . Power Slot 3 | . . . 2 . . . . . . . . 1 . . . . . Propulsion Slot 3 | . 1 . 1 . . . . . . . . . . . . 1 . Utility Slot 6 | 3 . . 2 . . . . . . . . 1 . . . . . Weapon Slot 4 | 1 1 . 1 . . . . . . . . . 1 . . . . Core Integrity 5 | . . . . . . . . . . . . 5 . . . . . Heat Dissipation 9 | . 4 . 3 . . . . . . . . . . 2 . . . Inventory Capacity 4 | . 1 . . . . . 1 . 1 . . . . 1 . . . Sight Range 2 | 1 . . . . . 1 . . . . . . . . . . . Ranged Accuracy 8 | . 2 . 1 . 2 . 1 . . . 1 1 . . . . . Hack Attack % 5 | . . . 2 . . 1 2 . . . . . . . . . . Hack Defense % 2 | . . . 2 . . . . . . . . . . . . . . KI Resistance % 4 | . . . 1 . . . 1 1 . . . . . . 1 . . TH Resistance % 4 | . . . 1 . . . . 2 . . . . . . 1 . . KI Damage % 4 | . . . 1 . . 1 1 . 1 . . . . . . . . EX Damage % 2 | . . . . . . . . . . . . . 2 . . . . Protomatter Created 8329 | . 256 . 880 152 . 191 872 638 968 . 221 776 984 990 443 695 263 Integrity Restored 6720 | . 467 . 892 41 . 218 858 344 537 . 149 813 864 499 261 678 99 Core 5259 | . 461 . 622 17 . 167 573 259 398 . 114 813 380 441 237 678 99 Parts 1461 | . 6 . 270 24 . 51 285 85 139 . 35 . 484 58 24 . . Protomatter Decayed 4473 | . 89 . 512 183 . 115 545 642 776 . 60 443 484 436 38 150 . Game ------ Seed SmartbombSegregatorPod Manual? 1 Play Time 02:33:14 Cumulative 356.2 hours Start 2023.02.21 @ 20:35:04 End 2023.02.22 @ 00:24:13 Sessions 1 Manual Loads 0 Difficulty Rogue Special Mode Winter2019/RPGLIKE Game No. 416 Rogue 416 Adventurer 0 Explorer 0 Win Type - Total 0 Types 0/0/0/0/0/0/0/0/0 Lore% 50 Gallery% 74 Achievement% 61 Wizard Run 0 Options --------- ASCII 0 Keyboard 0 Movement Mouse Keybinds 0 Fullscreen 2 Font 24/Smallcaps Map View 76x50 Tactical HUD 1 Map Filters NONE Filters NONE Steam 1 RUN: 80e18cda-588a-4105-a92f-4715817b3146